bitfinex-derivatives/quotes_BTCF0:USTF0_20240925
["timestamp","ask_amount","ask_price","bid_price","bid_amount"]
[1727257631431,0.09889295,63738.0,63737.0,0.078443]
[1727257631633,0.09989295,63738.0,63737.0,0.078443]
[1727257634837,0.09989295,63738.0,63737.0,0.14115884]
[1727257635035,0.09989295,63738.0,63737.0,0.078443]
[1727257635829,0.16237251,63738.0,63737.0,0.078443]
[1727257636837,0.52317251,63738.0,63737.0,0.078443]
[1727257637436,0.46069295,63738.0,63737.0,0.14115884]
[1727257637740,0.52317251,63738.0,63737.0,0.078443]
[1727257638544,0.52317251,63738.0,63737.0,0.078443]
[1727257638740,0.46069295,63738.0,63737.0,0.078443]
[1727257638947,0.6085177,63738.0,63737.0,0.078443]
[1727257639644,0.6085177,63738.0,63734.0,0.111346]
[1727257639645,0.078445,63735.0,63734.0,0.111346]
[1727257639846,0.20688727,63735.0,63734.0,0.111346]
[1727257640842,0.20888727,63735.0,63734.0,0.111346]
[1727257643444,0.11888727,63735.0,63734.0,0.111346]
[1727257645249,0.04044227,63735.0,63734.0,0.201346]
[1727257645543,0.04044227,63735.0,63734.0,1.51601422]
[1727257645742,0.002,63735.0,63734.0,1.51601422]
[1727257646540,0.002,63735.0,63734.0,1.87681422]
[1727257647050,0.01945095,63738.0,63737.0,0.078443]
[1727257647255,0.0037,63742.0,63741.0,0.078438]
[1727257647548,0.59283095,63743.0,63742.0,0.078437]
[1727257647751,0.61098255,63743.0,63742.0,0.078437]
[1727257648650,0.52098255,63743.0,63742.0,0.078437]
[1727257649052,0.44454655,63743.0,63742.0,0.078437]
[1727257649346,0.3820316,63743.0,63742.0,0.14116932]
[1727257649556,0.3820316,63743.0,63742.0,0.078437]
[1727257649749,0.3820316,63743.0,63742.0,0.14116932]
[1727257649942,0.002,63743.0,63742.0,0.41017264]
[1727257650245,0.002,63743.0,63742.0,0.59085134]
[1727257650450,0.002,63743.0,63742.0,0.51243594]
[1727257650649,0.002,63743.0,63742.0,0.42235899]
[1727257650857,0.002,63743.0,63742.0,0.24173564]
[1727257654050,0.04088403,63743.0,63742.0,0.24173564]
[1727257656053,0.15026651,63743.0,63742.0,0.24173564]
[1727257658455,0.1502074,63743.0,63742.0,0.24173564]
[1727257659547,0.04082492,63743.0,63742.0,0.24173564]
[1727257662054,0.002,63743.0,63742.0,0.24173564]
[1727257662253,0.080436,63743.0,63742.0,0.24173564]
[1727257663752,0.080436,63743.0,63742.0,0.078437]
[1727257665953,0.080436,63743.0,63742.0,0.14109915]
[1727257666154,0.080436,63743.0,63742.0,0.078437]
[1727257666663,0.080436,63743.0,63742.0,0.12542886]
[1727257666953,0.080436,63743.0,63742.0,0.12542804]
[1727257667155,0.080436,63743.0,63742.0,0.078437]
[1727257667547,0.080436,63743.0,63742.0,0.12543187]
[1727257670455,0.080436,63743.0,63742.0,0.078437]
[1727257674465,0.080436,63743.0,63742.0,0.14109915]
[1727257676167,0.080436,63743.0,63742.0,0.078437]
[1727257676958,0.174016,63743.0,63742.0,0.078437]
[1727257678858,0.080436,63743.0,63742.0,0.078437]
[1727257680569,0.174016,63743.0,63742.0,0.078437]
[1727257681374,0.09558,63743.0,63742.0,0.078437]
[1727257681561,0.002,63743.0,63742.0,0.529237]
[1727257681878,0.002,63743.0,63742.0,0.279174]
[1727257682766,0.002,63743.0,63742.0,0.639974]
[1727257683964,0.002,63743.0,63742.0,0.45654049]
[1727257684166,0.002,63743.0,63742.0,0.55887761]
[1727257684571,0.002,63743.0,63742.0,0.99816102]
[1727257684875,0.002,63743.0,63742.0,0.91973593]
[1727257685262,0.002,63743.0,63742.0,0.99817293]
[1727257685668,0.002,63743.0,63742.0,1.0917359]
[1727257686272,0.002,63743.0,63742.0,1.0132989]
[1727257686472,0.002,63743.0,63742.0,1.0131145]
[1727257687973,0.002,63743.0,63742.0,0.91955153]
[1727257689168,0.002,63743.0,63742.0,1.02201637]
[1727257689675,0.002,63743.0,63742.0,1.11557934]
[1727257689880,0.0037,63749.0,63748.0,0.156858]
[1727257690073,0.0037,63755.0,63754.0,0.078422]
[1727257690380,0.00235344,63759.0,63757.0,0.078418]
[1727257690381,0.06248916,63758.0,63757.0,0.078418]
[1727257690577,0.0648426,63759.0,63758.0,0.078417]
[1727257691274,0.00235344,63759.0,63758.0,0.078417]
[1727257691483,0.00235344,63759.0,63758.0,0.168417]
[1727257691974,0.00235344,63759.0,63758.0,0.2154326]
[1727257692165,0.08733938,63759.0,63758.0,0.246834]
[1727257692368,0.09233938,63759.0,63758.0,0.246834]
[1727257692684,0.15590952,63759.0,63758.0,0.246834]
[1727257692979,0.15590952,63759.0,63758.0,0.168417]
[1727257692980,0.04667972,63759.0,63758.0,0.168417]
[1727257693376,0.12158324,63759.0,63758.0,0.168417]
[1727257693578,0.16090952,63759.0,63758.0,0.168417]
[1727257694173,0.16086524,63759.0,63758.0,0.168417]
[1727257694377,0.09750021,63759.0,63758.0,0.168417]
[1727257694766,0.13710113,63759.0,63758.0,0.168417]
[1727257695176,0.05167972,63759.0,63758.0,0.168417]
[1727257696083,0.05192335,63759.0,63758.0,0.168417]
[1727257697578,0.05192335,63759.0,63758.0,0.529217]
[1727257697969,0.05192335,63759.0,63758.0,0.168417]
[1727257698276,0.05192335,63759.0,63758.0,0.529217]
[1727257698580,0.05192335,63759.0,63758.0,0.168417]
[1727257698885,0.05192335,63759.0,63758.0,0.529217]
[1727257699085,0.01235344,63759.0,63758.0,0.529217]
[1727257699287,0.01235344,63759.0,63758.0,0.57611758]
[1727257699587,0.01235344,63759.0,63758.0,0.21531758]
[1727257699885,0.01235344,63759.0,63758.0,0.529217]
[1727257701682,0.01235344,63759.0,63758.0,0.607634]
[1727257702283,0.01235344,63759.0,63758.0,0.529217]
[1727257703291,0.01235344,63759.0,63758.0,0.540417]
[1727257703586,0.01235344,63759.0,63758.0,0.618834]
[1727257703887,0.01235344,63759.0,63758.0,0.540417]
[1727257704384,0.01235344,63759.0,63758.0,0.58731758]
[1727257704978,0.01235344,63759.0,63758.0,0.450417]
[1727257706484,0.01235344,63759.0,63758.0,0.089617]
[1727257706791,0.09076944,63759.0,63758.0,0.089617]
[1727257707180,0.17583082,63759.0,63758.0,0.089617]
[1727257707590,0.09741482,63759.0,63758.0,0.089617]
[1727257710694,0.13710113,63759.0,63758.0,0.089617]
[1727257710886,0.22214053,63759.0,63758.0,0.089617]
[1727257711383,0.22214053,63759.0,63758.0,0.450417]
[1727257711590,0.09739284,63759.0,63758.0,0.450417]
[1727257712493,0.14962553,63759.0,63758.0,0.089617]
[1727257713287,0.32139473,63759.0,63758.0,0.089617]
[1727257713691,0.14962553,63759.0,63758.0,0.089617]
[1727257714190,0.01235344,63759.0,63758.0,0.13651552]
[1727257715588,0.01235344,63759.0,63758.0,0.089617]
[1727257716290,0.01235344,63759.0,63758.0,0.179617]
[1727257716497,0.01235344,63759.0,63758.0,0.24226568]
[1727257716691,0.09076944,63759.0,63758.0,0.179617]
[1727257716891,0.09076944,63759.0,63758.0,0.15226568]
[1727257717089,0.09076944,63759.0,63758.0,0.089617]
[1727257718493,0.01235344,63759.0,63758.0,0.15229651]
[1727257718683,0.01235344,63759.0,63758.0,0.089617]
[1727257721394,0.09076944,63759.0,63758.0,0.089617]
[1727257722199,0.17625748,63759.0,63758.0,0.089617]
[1727257722407,0.23969529,63759.0,63758.0,0.089617]
[1727257722901,0.13032806,63759.0,63758.0,0.089617]
[1727257723103,0.17626644,63759.0,63758.0,0.089617]
[1727257723403,0.13032806,63759.0,63758.0,0.089617]
[1727257723703,0.2396974,63759.0,63758.0,0.089617]
[1727257724300,0.2396966,63759.0,63758.0,0.089617]
[1727257724496,0.28560253,63759.0,63758.0,0.089617]
[1727257724694,0.17623399,63759.0,63758.0,0.089617]
[1727257725492,0.1612797,63759.0,63758.0,0.089617]
[1727257726301,0.1612797,63759.0,63758.0,0.25771161]
[1727257726603,0.05191206,63759.0,63758.0,0.25771161]
[1727257729311,0.01235344,63759.0,63758.0,0.25771161]
[1727257730704,0.09076944,63759.0,63758.0,0.25771161]
[1727257731604,0.15326971,63759.0,63758.0,0.25771161]
[1727257731994,0.09076944,63759.0,63758.0,0.25771161]
[1727257732194,0.15326971,63759.0,63758.0,0.25771161]
[1727257732397,0.09076944,63759.0,63758.0,0.25771161]
[1727257732598,0.15327363,63759.0,63758.0,0.25771161]
[1727257732798,0.24327363,63759.0,63758.0,0.25771161]
[1727257733001,0.18076944,63759.0,63758.0,0.089617]
[1727257733204,0.60407474,63759.0,63758.0,0.089617]
[1727257733391,0.54156944,63759.0,63758.0,0.089617]
[1727257733598,0.18076944,63759.0,63758.0,0.089617]
[1727257736406,0.25918544,63759.0,63758.0,0.089617]
[1727257736808,0.25918544,63759.0,63758.0,0.0112]
[1727257737105,0.25918544,63759.0,63758.0,0.07393985]
[1727257737813,0.25918544,63759.0,63758.0,0.0112]
[1727257738109,0.25918544,63759.0,63758.0,0.024]
[1727257738700,0.16918544,63759.0,63758.0,0.024]
[1727257743111,0.16918544,63759.0,63758.0,0.07103813]
[1727257744303,0.56922447,63759.0,63758.0,0.024]
[1727257746016,0.52998544,63759.0,63758.0,0.024]
[1727257747714,0.64763563,63759.0,63758.0,0.024]
[1727257748010,0.56686619,63759.0,63758.0,0.102417]
[1727257748518,0.088416,63759.0,63758.0,0.102417]
[1727257748712,0.088416,63759.0,63758.0,0.192417]
[1727257750120,0.088416,63759.0,63758.0,0.102417]
[1727257751411,0.1277533,63759.0,63758.0,0.102417]
[1727257751598,0.4885533,63759.0,63758.0,0.102417]
[1727257752216,0.449216,63759.0,63758.0,0.102417]
[1727257753699,0.527632,63759.0,63758.0,0.102417]
[1727257754410,0.527632,63759.0,63758.0,0.14945513]
[1727257756605,0.527632,63759.0,63758.0,0.102417]
[1727257756801,0.617632,63759.0,63758.0,0.14944891]
[1727257757409,0.617632,63759.0,63758.0,0.07103191]
[1727257757820,0.617632,63759.0,63758.0,0.024]
[1727257759609,0.256832,63759.0,63758.0,0.024]
[1727257762218,0.256832,63759.0,63758.0,0.08673985]
[1727257763018,0.256832,63759.0,63758.0,0.024]
[1727257764317,0.256832,63759.0,63758.0,0.08673985]
[1727257764517,0.617632,63759.0,63758.0,0.024]
[1727257766416,0.70136184,63759.0,63758.0,0.024]
[1727257768120,0.34056184,63759.0,63758.0,0.024]
[1727257768417,0.70135471,63759.0,63758.0,0.024]
[1727257768719,0.76579237,63759.0,63758.0,0.024]
[1727257769121,0.40499237,63759.0,63758.0,0.024]
[1727257769317,0.76579237,63759.0,63758.0,0.024]
[1727257770508,0.53294587,63759.0,63758.0,0.102417]
[1727257770710,0.61136187,63759.0,63758.0,0.102417]
[1727257771109,0.67579399,63759.0,63758.0,0.102417]
[1727257771308,0.56637374,63759.0,63758.0,0.102417]
[1727257771531,0.67579153,63759.0,63758.0,0.102417]
[1727257771726,0.56637374,63759.0,63758.0,0.102417]
[1727257772723,0.72086979,63759.0,63758.0,0.102417]
[1727257772916,0.61145008,63759.0,63758.0,0.102417]
[1727257773317,0.20557374,63759.0,63758.0,0.102417]
[1727257773517,0.31499208,63759.0,63758.0,0.102417]
[1727257773820,0.29557374,63759.0,63758.0,0.102417]
[1727257774023,0.7014967,63759.0,63758.0,0.102417]
[1727257774414,0.33498727,63759.0,63758.0,0.102417]
[1727257774615,0.69578727,63759.0,63758.0,0.102417]
[1727257775014,0.33498727,63759.0,63758.0,0.102417]
[1727257775525,0.256832,63759.0,63758.0,0.102417]
[1727257775723,0.33498727,63759.0,63758.0,0.102417]
[1727257776316,0.256832,63759.0,63758.0,0.102417]
[1727257776513,0.33498727,63759.0,63758.0,0.102417]
[1727257777118,0.69578727,63759.0,63758.0,0.102417]
[1727257777319,0.617632,63759.0,63758.0,0.102417]
[1727257777723,0.69578727,63759.0,63758.0,0.102417]
[1727257778727,0.617632,63759.0,63758.0,0.102417]
[1727257779222,0.69578727,63759.0,63758.0,0.102417]
[1727257779732,0.69578727,63759.0,63758.0,0.024]
[1727257781428,0.75272801,63759.0,63758.0,0.024]
[1727257783523,0.75276553,63759.0,63758.0,0.024]
[1727257787129,0.39196553,63759.0,63758.0,0.024]
[1727257787325,0.75276553,63759.0,63758.0,0.024]
[1727257787533,0.39196553,63759.0,63758.0,0.024]
[1727257787832,0.75276553,63759.0,63758.0,0.024]
[1727257788631,0.39196553,63759.0,63758.0,0.024]
[1727257788830,0.75276553,63759.0,63758.0,0.024]
[1727257789035,0.39196553,63759.0,63758.0,0.024]
[1727257789432,0.69579007,63759.0,63758.0,0.024]
[1727257790526,0.617632,63759.0,63758.0,0.024]
[1727257790933,0.617632,63759.0,63758.0,0.07106856]
[1727257791331,0.617632,63759.0,63758.0,0.024]
[1727257792740,0.256832,63759.0,63758.0,0.024]
[1727257792941,0.617632,63759.0,63758.0,0.024]
[1727257793442,0.617632,63759.0,63758.0,0.07107002]
[1727257794641,0.256832,63759.0,63758.0,0.07107002]
[1727257794838,0.256832,63759.0,63758.0,0.024]
[1727257795142,0.617632,63759.0,63758.0,0.024]
[1727257795538,0.256832,63759.0,63758.0,0.024]
[1727257795833,0.617632,63759.0,63758.0,0.024]
[1727257796439,0.92538538,63759.0,63758.0,0.024]
[1727257798728,0.75343761,63759.0,63758.0,0.024]
[1727257800432,0.83185361,63759.0,63758.0,0.024]
[1727257800633,0.89275414,63759.0,63758.0,0.024]
[1727257801327,0.75694853,63759.0,63758.0,0.024]
[1727257801565,0.83140787,63759.0,63758.0,0.024]
[1727257801839,0.8138924,63759.0,63758.0,0.024]
[1727257802736,0.8923084,63759.0,63758.0,0.024]
[1727257803347,0.90925091,63759.0,63758.0,0.024]
[1727257803840,0.98766691,63759.0,63758.0,0.024]
[1727257804147,0.90925091,63759.0,63758.0,0.024]
[1727257804530,0.256832,63759.0,63758.0,0.024]
[1727257804730,0.617632,63759.0,63758.0,0.024]
[1727257806847,0.696048,63759.0,63758.0,0.024]
[1727257807047,0.617632,63759.0,63758.0,0.024]
[1727257808850,0.696048,63759.0,63758.0,0.024]
[1727257809343,0.617632,63759.0,63758.0,0.024]
[1727257809539,0.696048,63759.0,63758.0,0.024]
[1727257809733,0.617632,63759.0,63758.0,0.024]
[1727257810047,0.696048,63759.0,63758.0,0.024]
[1727257810237,0.71136075,63759.0,63758.0,0.024]
[1727257810438,0.696048,63759.0,63758.0,0.024]
[1727257811332,0.73473739,63759.0,63758.0,0.024]
[1727257811537,0.696048,63759.0,63758.0,0.024]
[1727257812750,0.78974499,63759.0,63758.0,0.024]
[1727257813143,0.696048,63759.0,63758.0,0.024]
[1727257816148,0.335248,63759.0,63758.0,0.024]
[1727257816349,1.056848,63759.0,63758.0,0.024]
[1727257819447,1.19150747,63759.0,63758.0,0.024]
[1727257819752,1.33212663,63759.0,63758.0,0.024]
[1727257820459,1.19150747,63759.0,63758.0,0.024]
[1727257821656,1.36339242,63759.0,63758.0,0.024]
[1727257823449,1.42383641,63759.0,63758.0,0.024]
[1727257824958,0.235278,63751.0,63746.0,0.0037]
[1727257825163,0.078437,63742.0,63741.0,0.0314]
[1727257825347,0.607674,63742.0,63741.0,0.0314]
[1727257825546,0.7424214,63742.0,63741.0,0.0314]
[1727257826162,0.88281379,63742.0,63741.0,0.0314]
[1727257826350,0.7434214,63742.0,63741.0,0.0324]
[1727257826553,0.608674,63742.0,63741.0,0.0324]
[1727257826744,0.608674,63742.0,63741.0,1e-08]
[1727257826951,0.68664241,63742.0,63741.0,1e-08]
[1727257827150,0.63257308,63742.0,63741.0,1e-08]
[1727257827352,0.71050428,63742.0,63741.0,1e-08]
[1727257827552,0.71150428,63742.0,63741.0,0.00200001]
[1727257827954,0.71201008,63742.0,63741.0,0.00200001]
[1727257828956,0.078449,63732.0,63731.0,0.06100001]
[1727257829160,0.529249,63732.0,63731.0,0.06100001]
[1727257829655,0.607698,63732.0,63731.0,0.06100001]
[1727257830058,0.608698,63732.0,63731.0,0.06300001]
[1727257830562,0.078459,63724.0,63723.0,0.04707076]
[1727257830759,0.168459,63724.0,63723.0,0.11077076]
[1727257830949,0.168459,63724.0,63723.0,0.76035753]
[1727257831145,0.078459,63724.0,63723.0,0.85035753]
[1727257831552,0.078459,63724.0,63723.0,0.80328677]
[1727257831951,0.078459,63724.0,63723.0,0.33248677]
[1727257832149,0.078459,63724.0,63723.0,0.36408677]
[1727257832655,0.079459,63724.0,63723.0,0.36408677]
[1727257833050,0.080459,63724.0,63723.0,0.36408677]
[1727257833252,0.079459,63724.0,63723.0,0.27408677]
[1727257833465,0.080459,63724.0,63723.0,0.27408677]
[1727257834359,0.10472108,63724.0,63723.0,0.35254677]
[1727257834550,0.10472108,63724.0,63723.0,0.27408677]
[1727257834756,0.078465,63719.0,63718.0,0.00088]
[1727257834954,0.078469,63716.0,63715.0,0.0622]
[1727257835152,0.439269,63716.0,63715.0,0.0622]
[1727257835358,0.439269,63716.0,63715.0,0.23230016]
[1727257835556,0.439269,63716.0,63715.0,0.0622]
[1727257836462,0.439269,63716.0,63715.0,0.14067]
[1727257836463,0.440269,63716.0,63715.0,0.14067]
[1727257836661,0.441269,63716.0,63715.0,0.14067]
[1727257837865,0.38643855,63716.0,63715.0,0.14067]
[1727257838170,0.47643855,63716.0,63706.0,0.3608]
[1727257838363,0.09,63713.0,63710.0,0.078475]
[1727257838565,0.078475,63711.0,63710.0,0.078475]
[1727257838956,0.078475,63711.0,63710.0,0.72513847]
[1727257839956,0.001,63713.0,63712.0,0.078474]
[1727257840151,0.079472,63713.0,63712.0,0.168474]
[1727257840367,0.078472,63713.0,63712.0,0.33972981]
[1727257841561,0.079472,63713.0,63712.0,0.33972981]
[1727257841956,0.001,63713.0,63712.0,0.33972981]
[1727257842462,0.002,63713.0,63712.0,0.33972981]
[1727257851581,0.10210755,63716.0,63715.0,0.07847]
[1727257852686,0.10310755,63716.0,63715.0,0.07847]
[1727257853384,0.10410755,63716.0,63715.0,0.07947]
[1727257856483,0.10410755,63716.0,63715.0,0.14220985]
[1727257858193,0.10310755,63716.0,63715.0,0.14220985]
[1727257858391,0.10410755,63716.0,63715.0,0.07947]
[1727257858978,0.02563855,63716.0,63715.0,0.24794]
[1727257859188,0.02563855,63716.0,63715.0,0.42966738]
[1727257859387,0.02563855,63716.0,63715.0,1.26130738]
[1727257859585,0.02563855,63716.0,63715.0,1.36439449]
[1727257860086,0.002,63716.0,63715.0,1.36439449]
[1727257860284,0.002,63716.0,63715.0,1.44286449]
[1727257860686,0.002,63716.0,63715.0,1.36439449]
[1727257861486,0.002,63716.0,63715.0,0.89355449]
[1727257861710,0.002,63716.0,63715.0,1.36439449]
[1727257861904,0.002,63716.0,63715.0,0.80355449]
[1727257862318,0.002,63716.0,63715.0,0.72508449]
[1727257862905,0.441269,63716.0,63715.0,0.07947]
[1727257863512,0.441269,63716.0,63715.0,0.14221096]
[1727257863815,0.441269,63716.0,63715.0,0.07947]
[1727257865020,0.519738,63716.0,63715.0,0.001]
[1727257866215,0.519738,63716.0,63715.0,0.07947]
[1727257866410,0.519738,63716.0,63715.0,0.001]
[1727257866615,0.519738,63716.0,63715.0,0.07947]
[1727257868222,0.519738,63716.0,63715.0,0.001]
[1727257872233,0.158938,63716.0,63715.0,0.001]
[1727257872435,0.519738,63716.0,63715.0,0.0637627]
[1727257874737,0.58205183,63716.0,63715.0,0.001]
[1727257874919,0.58205183,63716.0,63715.0,0.06375737]
[1727257875526,0.58205183,63716.0,63715.0,0.001]
[1727257879234,0.58205183,63716.0,63715.0,0.001]
[1727257880430,0.519738,63716.0,63715.0,0.001]
[1727257880634,0.158938,63716.0,63715.0,0.001]
[1727257880837,0.519738,63716.0,63715.0,0.001]
[1727257881840,0.158938,63716.0,63715.0,0.001]
[1727257882035,0.519738,63716.0,63715.0,0.001]
[1727257885333,0.598207,63716.0,63715.0,0.001]
[1727257885745,0.66052083,63716.0,63715.0,0.001]
[1727257886140,0.598207,63716.0,63715.0,0.001]
[1727257886529,0.66052083,63716.0,63715.0,0.001]
[1727257890451,0.58205183,63716.0,63715.0,0.001]
[1727257892641,0.519738,63716.0,63715.0,0.06375737]
[1727257892951,0.58218904,63716.0,63715.0,0.001]
[1727257893849,0.58218904,63716.0,63715.0,0.06378347]
[1727257894446,0.58218904,63716.0,63715.0,0.001]
[1727257901054,0.519738,63716.0,63715.0,0.001]
[1727257907762,0.58219629,63716.0,63715.0,0.001]
[1727257907953,0.519738,63716.0,63715.0,0.001]
[1727257908562,0.519738,63716.0,63715.0,0.06379957]
[1727257912158,0.158938,63716.0,63715.0,0.06379957]
[1727257912353,0.519738,63716.0,63715.0,0.06379957]
[1727257915579,0.441269,63716.0,63715.0,0.06379957]
[1727257917373,0.080469,63716.0,63715.0,0.06379957]
[1727257917576,0.441269,63716.0,63715.0,0.06379957]
[1727257918869,0.441269,63716.0,63715.0,0.14226957]
[1727257919373,0.080469,63716.0,63715.0,0.14226957]
[1727257919574,0.441269,63716.0,63715.0,0.14226957]
[1727257920168,0.441269,63716.0,63715.0,0.07947]
[1727257920469,0.441269,63716.0,63715.0,0.14226866]
[1727257920868,0.441269,63716.0,63715.0,0.06379866]
[1727257920869,0.519738,63716.0,63715.0,0.06379866]
[1727257921174,0.441269,63716.0,63715.0,0.06379866]
[1727257921376,0.441269,63716.0,63715.0,0.001]
[1727257922471,0.08718278,63718.0,63717.0,0.078468]
[1727257922777,0.02471827,63718.0,63717.0,0.078468]
[1727257922975,0.06246451,63719.0,63718.0,0.078466]
[1727257923574,0.078463,63721.0,63720.0,0.078464]
[1727257923575,0.168463,63721.0,63720.0,0.078464]
[1727257924669,0.169463,63721.0,63720.0,0.080464]
[1727257925576,0.170463,63721.0,63720.0,0.080464]
[1727257929981,0.26402509,63721.0,63720.0,0.080464]
[1727257930979,0.170463,63721.0,63720.0,0.080464]
[1727257931779,0.26405503,63721.0,63720.0,0.080464]
[1727257932076,0.170463,63721.0,63720.0,0.080464]
[1727257933583,0.2328568,63721.0,63720.0,0.080464]
[1727257933880,0.170463,63721.0,63720.0,0.080464]
[1727257934674,0.080463,63721.0,63720.0,0.080464]
[1727257934872,0.002,63721.0,63720.0,0.080464]
[1727257935079,0.002,63721.0,63720.0,0.14319542]
[1727257935481,0.002,63721.0,63720.0,0.14319222]
[1727257935987,0.002,63721.0,63720.0,0.158928]
[1727257936374,0.002,63721.0,63720.0,0.080464]
[1727257936779,0.002,63721.0,63720.0,0.158928]
[1727257936984,0.002,63721.0,63720.0,0.32851088]
[1727257937179,0.002,63721.0,63720.0,0.25004688]
[1727257942982,0.002,63721.0,63720.0,0.31274609]
[1727257943491,0.002,63721.0,63720.0,0.25004688]
[1727257944684,0.002,63721.0,63720.0,1.47777488]
[1727257944892,0.07019375,63738.0,63735.0,0.078445]
[1727257945190,0.07019375,63738.0,63722.0,0.09]
[1727257945191,0.439234,63745.0,63744.0,0.078434]
[1727257945378,0.3608,63745.0,63744.0,0.168434]
[1727257945783,0.3608,63745.0,63744.0,0.078434]
[1727257946293,0.38479895,63745.0,63744.0,0.078434]
[1727257946493,0.38479895,63745.0,63744.0,0.079434]
[1727257946895,0.38579895,63745.0,63744.0,0.079434]
[1727257947697,0.448051,63745.0,63744.0,0.079434]
[1727257948287,0.538051,63745.0,63744.0,0.079434]
[1727257948483,0.47579895,63745.0,63744.0,0.079434]
[1727257948686,0.538051,63745.0,63744.0,0.079434]
[1727257949584,0.47579895,63745.0,63744.0,0.079434]
[1727257949993,0.11499895,63745.0,63744.0,0.079434]
[1727257953498,0.19343195,63745.0,63744.0,0.079434]
[1727257958001,0.078434,63744.0,63735.0,0.0008]
[1727257958298,0.078434,63744.0,63729.0,0.0037]
[1727257958299,0.078452,63730.0,63729.0,0.0037]
[1727257958497,0.3608,63730.0,63721.0,0.0322]
[1727257958700,0.09,63723.0,63721.0,0.078463]
[1727257959405,0.09,63723.0,63722.0,0.439261]
[1727257960709,0.16946,63723.0,63722.0,0.3678]
[1727257961100,0.17046,63723.0,63722.0,0.3738]
[1727257961497,0.53126,63723.0,63722.0,0.013]
[1727257962501,0.5557538,63723.0,63722.0,0.013]
[1727257964016,0.6342138,63723.0,63722.0,0.013]
[1727257967821,0.4657538,63723.0,63722.0,0.013]
[1727257968414,0.1049538,63723.0,63722.0,0.013]
[1727257970818,0.4657538,63723.0,63722.0,0.013]
[1727257975024,0.4657538,63723.0,63722.0,0.103]
[1727257975425,0.4657538,63723.0,63722.0,0.181461]
[1727257976218,0.1049538,63723.0,63722.0,0.181461]
[1727257976627,0.002,63723.0,63722.0,0.3595237]
[1727257978522,0.002,63723.0,63722.0,0.40635706]
[1727257979229,0.002,63723.0,63722.0,0.4379847]
[1727257979935,0.0037,63729.0,63728.0,0.078454]
[1727257980126,0.3608,63730.0,63729.0,0.078453]
[1727257980430,0.0037,63735.0,63734.0,0.078447]
[1727257980636,0.38491038,63736.0,63735.0,0.078445]
[1727257981135,0.46335438,63736.0,63735.0,0.24781556]
[1727257982026,0.47035438,63736.0,63735.0,0.24881556]
[1727257983125,0.47035438,63736.0,63735.0,0.24981556]
[1727257983126,0.47635438,63736.0,63735.0,0.24981556]
[1727257986637,0.3738,63736.0,63735.0,0.24981556]
[1727257988039,0.0037,63741.0,63740.0,0.078439]
[1727257988231,0.0037,63744.0,63743.0,0.078436]
[1727257988434,0.078432,63746.0,63745.0,0.078432]
[1727257988630,0.078428,63749.0,63748.0,0.078428]
[1727257990327,0.082428,63749.0,63748.0,0.078428]
[1727257990735,0.087428,63749.0,63748.0,0.078428]
[1727257996346,0.177428,63749.0,63748.0,0.078428]
[1727257997544,0.538228,63749.0,63748.0,0.078428]
[1727257999941,0.57718377,63749.0,63748.0,0.078428]
[1727258000539,0.68633954,63749.0,63748.0,0.078428]
[1727258002452,0.62241804,63749.0,63748.0,0.078428]
[1727258002752,0.078435,63746.0,63745.0,0.078433]
[1727258002941,0.18735715,63746.0,63745.0,0.078433]
[1727258003141,0.22631292,63746.0,63745.0,0.078433]
[1727258003543,0.226347,63746.0,63745.0,0.078433]
[1727258003848,0.28726145,63746.0,63745.0,0.078433]
[1727258004046,0.29026145,63746.0,63745.0,0.078433]
[1727258004543,0.16551199,63746.0,63745.0,0.078433]
[1727258006040,0.52631199,63746.0,63745.0,0.078433]
[1727258006644,0.57768466,63746.0,63745.0,0.078433]
[1727258006847,0.442235,63746.0,63745.0,0.078433]
[1727258007242,0.4538,63746.0,63742.0,0.04694728]
[1727258007443,0.156878,63740.0,63739.0,0.0469726]
[1727258007653,0.078443,63737.0,63736.0,0.0469726]
[1727258007842,0.078443,63737.0,63733.0,0.14483083]
[1727258007843,0.3608,63737.0,63734.0,0.0469726]
[1727258008154,0.3608,63737.0,63735.0,0.22378582]
[1727258008155,0.078444,63736.0,63735.0,0.22378582]
[1727258008350,0.3608,63737.0,63735.0,0.04698583]
[1727258010044,0.09,63736.0,63735.0,0.04698583]
[1727258010245,0.169444,63736.0,63735.0,0.05498583]
[1727258010553,0.170444,63736.0,63735.0,0.06498583]
[1727258010945,0.169444,63736.0,63735.0,0.05698583]
[1727258011146,0.168444,63736.0,63735.0,0.06498583]
[1727258011857,0.169444,63736.0,63735.0,0.06498583]
[1727258012253,0.247888,63736.0,63735.0,0.06498583]
[1727258012451,0.247888,63736.0,63735.0,0.018]
[1727258013047,0.248888,63736.0,63735.0,0.018]
[1727258013860,0.27345962,63736.0,63735.0,0.018]
[1727258015048,0.63425962,63736.0,63735.0,0.018]
[1727258015960,0.712173,63736.0,63735.0,0.018]
[1727258016454,0.63425962,63736.0,63735.0,0.018]
[1727258018255,0.63425962,63736.0,63735.0,0.096445]
[1727258018755,0.46581562,63736.0,63735.0,0.096445]
[1727258019753,0.02657162,63736.0,63735.0,0.096445]
[1727258022063,0.02657162,63736.0,63735.0,0.14343083]
[1727258023061,0.02657162,63736.0,63735.0,0.14340626]
[1727258023252,0.02657162,63736.0,63735.0,0.1434063]
[1727258023563,0.02657162,63736.0,63735.0,0.096445]
[1727258024062,0.02657162,63736.0,63735.0,0.14340978]
[1727258024451,0.02657162,63736.0,63735.0,0.31152625]
[1727258025463,0.02657162,63736.0,63735.0,0.26456147]
[1727258026454,0.02657162,63736.0,63735.0,0.31153293]
[1727258026673,0.10501562,63736.0,63735.0,0.31153673]
[1727258027562,0.10501562,63736.0,63735.0,0.26456147]
[1727258030054,0.14359403,63736.0,63735.0,0.26456147]
[1727258031156,0.06515003,63736.0,63735.0,0.26456147]